bitfinex-derivatives/quotes_BTCF0:USTF0_20250508
["timestamp","ask_amount","ask_price","bid_price","bid_amount"]
[1746687741703,0.7844223,99098.0,99097.0,1.05444]
[1746687741905,0.2018388,99084.0,99077.0,0.032]
[1746687742109,0.5626388,99084.0,99083.0,0.74668]
[1746687742799,0.6258388,99084.0,99083.0,0.75409015]
[1746687743202,0.7938388,99084.0,99083.0,0.75409015]
[1746687743406,0.7938388,99084.0,99083.0,0.34409015]
[1746687744207,1.2938388,99084.0,99083.0,0.34709015]
[1746687744506,1.2938388,99084.0,99083.0,0.35109015]
[1746687744702,1.2948388,99084.0,99083.0,0.34809015]
[1746687745205,1.2968388,99084.0,99083.0,0.34409015]
[1746687746907,1.2958388,99084.0,99083.0,0.34409015]
[1746687747103,0.7670388,99084.0,99083.0,0.56593095]
[1746687747511,0.7660388,99084.0,99083.0,0.56593095]
[1746687747707,0.7650388,99084.0,99083.0,0.56593095]
[1746687748106,0.9330388,99084.0,99083.0,0.56593095]
[1746687748507,0.9330388,99084.0,99083.0,0.56693095]
[1746687748804,0.9330388,99084.0,99083.0,0.56793095]
[1746687749301,0.7650388,99084.0,99083.0,0.31793095]
[1746687750006,0.7650388,99084.0,99083.0,0.31693095]
[1746687750211,0.9330388,99084.0,99083.0,0.31693095]
[1746687750505,0.9330388,99084.0,99083.0,0.31893095]
[1746687751013,0.4330388,99084.0,99083.0,0.31993095]
[1746687751309,0.2650388,99084.0,99083.0,0.31793095]
[1746687751511,0.2650388,99084.0,99083.0,0.31993095]
[1746687751711,0.2650388,99084.0,99083.0,0.31893095]
[1746687751907,0.2650388,99084.0,99083.0,0.24025095]
[1746687752111,0.4330388,99084.0,99083.0,0.11941015]
[1746687752411,0.4330388,99084.0,99083.0,0.32125095]
[1746687753215,0.4330388,99084.0,99083.0,0.32025095]
[1746687753511,0.4330388,99084.0,99083.0,0.31925095]
[1746687753714,0.4330388,99084.0,99083.0,0.32125095]
[1746687754108,0.4330388,99084.0,99083.0,0.31925095]
[1746687754313,0.4330388,99084.0,99083.0,0.32025095]
[1746687754614,0.4003388,99084.0,99083.0,0.32025095]
[1746687754913,0.4003388,99084.0,99083.0,0.31925095]
[1746687755310,0.4003388,99084.0,99083.0,0.52125095]
[1746687756913,0.4003388,99084.0,99083.0,0.52025095]
[1746687757313,0.4003388,99084.0,99083.0,0.88105095]
[1746687759011,0.4003388,99084.0,99083.0,0.67921015]
[1746687759607,0.4003388,99084.0,99083.0,0.65921015]
[1746687760007,0.4003388,99084.0,99083.0,0.65821015]
[1746687760607,0.4003388,99084.0,99083.0,0.65721015]
[1746687761313,0.4003388,99084.0,99083.0,0.44721015]
[1746687762418,0.9003388,99084.0,99083.0,0.44721015]
[1746687762618,0.9013388,99084.0,99083.0,0.44721015]
[1746687763409,0.9023388,99084.0,99083.0,0.44721015]
[1746687764220,0.9033388,99084.0,99083.0,0.44721015]
[1746687765523,1.2641388,99084.0,99083.0,0.08641015]
[1746687766519,1.2631388,99084.0,99083.0,0.08641015]
[1746687767020,1.2621388,99084.0,99083.0,0.08641015]
[1746687770521,1.2621388,99084.0,99083.0,0.11691015]
[1746687771118,1.2611388,99084.0,99083.0,0.11691015]
[1746687780828,0.9003388,99084.0,99083.0,0.11691015]
[1746687784132,0.9013388,99084.0,99083.0,0.11691015]
[1746687786030,0.8708388,99084.0,99083.0,0.35195095]
[1746687786329,0.668,99084.0,99083.0,0.37195095]
[1746687786524,0.668,99084.0,99083.0,0.42195095]
[1746687787631,0.168,99084.0,99083.0,0.42295095]
[1746687787826,0.168,99084.0,99083.0,0.42595095]
[1746687788238,0.03025,99089.0,99088.0,0.2018306]
[1746687788239,0.282541,99089.0,99088.0,0.2018306]
[1746687788534,0.252291,99089.0,99088.0,0.6326306]
[1746687789126,0.252291,99089.0,99088.0,0.6941306]
[1746687790032,0.252291,99089.0,99088.0,0.6961306]
[1746687790734,0.252291,99089.0,99088.0,0.6981306]
[1746687791327,0.420291,99089.0,99088.0,0.6981306]
[1746687792634,0.420291,99089.0,99088.0,0.6961306]
[1746687793035,0.420291,99089.0,99088.0,0.6971306]
[1746687794433,0.490931,99089.0,99088.0,0.6961306]
[1746687794838,0.23864,99089.0,99088.0,0.6961306]
[1746687795036,0.4404686,99089.0,99088.0,0.6961306]
[1746687795434,0.4404686,99089.0,99088.0,0.7750506]
[1746687796240,0.4404686,99089.0,99088.0,0.7740506]
[1746687796534,0.4404686,99089.0,99088.0,0.7750506]
[1746687796835,0.4404686,99089.0,99088.0,0.7740506]
[1746687797137,0.4404686,99089.0,99088.0,0.7750506]
[1746687797835,0.4404686,99089.0,99088.0,0.57222]
[1746687798034,0.4404686,99089.0,99088.0,0.57322]
[1746687798233,0.4404686,99089.0,99088.0,0.7750506]
[1746687798938,0.4404686,99089.0,99088.0,0.57322]
[1746687800136,0.4404686,99089.0,99088.0,0.7750506]
[1746687800932,0.4404686,99089.0,99088.0,0.57222]
[1746687801337,0.4404686,99089.0,99088.0,0.7740506]
[1746687801840,0.23864,99089.0,99088.0,0.7740506]
[1746687802041,0.4404686,99089.0,99088.0,0.7740506]
[1746687802735,0.23864,99089.0,99088.0,0.7740506]
[1746687802932,0.23864,99089.0,99088.0,0.7760506]
[1746687803127,0.2724686,99089.0,99088.0,0.7760506]
[1746687803338,0.2724686,99089.0,99088.0,0.7730506]
[1746687803537,0.2724686,99089.0,99088.0,0.7750506]
[1746687804142,0.2724686,99089.0,99088.0,0.7780506]
[1746687804634,0.2724686,99089.0,99088.0,0.7760506]
[1746687804843,0.2724686,99089.0,99088.0,0.7780506]
[1746687805739,0.2724686,99089.0,99088.0,0.7770506]
[1746687806142,0.4404686,99089.0,99088.0,0.7770506]
[1746687806639,0.4404686,99089.0,99088.0,0.7750506]
[1746687806843,0.4404686,99089.0,99088.0,0.7770506]
[1746687807230,0.4404686,99089.0,99088.0,0.7750506]
[1746687807429,0.4404686,99089.0,99088.0,0.7770506]
[1746687814141,0.2724686,99089.0,99088.0,0.7770506]
[1746687814439,0.07064,99089.0,99088.0,0.7770506]
[1746687815545,0.2724686,99089.0,99088.0,0.7770506]
[1746687815943,0.07064,99089.0,99088.0,1.0990506]
[1746687816149,0.07064,99089.0,99088.0,1.4370506]
[1746687816947,0.07064,99089.0,99088.0,1.4350506]
[1746687817343,0.07064,99089.0,99088.0,1.2670506]
[1746687818044,0.07064,99089.0,99088.0,1.0470506]
[1746687818752,0.07064,99089.0,99088.0,1.0480506]
[1746687818953,0.07064,99089.0,99088.0,1.0490506]
[1746687819144,0.23864,99089.0,99088.0,1.0490506]
[1746687820144,0.07064,99089.0,99088.0,1.0490506]
[1746687822451,0.2724686,99089.0,99088.0,1.0490506]
[1746687822649,0.6332686,99089.0,99088.0,0.20584]
[1746687822849,0.6332686,99089.0,99088.0,0.08584]
[1746687823055,0.6332686,99089.0,99088.0,0.2904307]
[1746687823243,0.8340686,99089.0,99088.0,0.2105907]
[1746687823549,1.18498861,99089.0,99088.0,0.2904307]
[1746687823739,1.18498861,99089.0,99088.0,0.2844307]
[1746687823740,0.93498861,99089.0,99088.0,0.2844307]
[1746687823940,1.18498861,99089.0,99088.0,0.2844307]
[1746687824145,0.2018388,99084.0,99083.0,0.00741015]
[1746687824344,0.2018388,99084.0,99083.0,0.31984]
[1746687825246,0.4414388,99084.0,99083.0,0.24]
[1746687825457,0.4414388,99084.0,99083.0,0.31984]
[1746687825957,0.4414388,99084.0,99083.0,0.07984]
[1746687826147,0.9414388,99084.0,99083.0,0.07984]
[1746687826549,0.9414388,99084.0,99083.0,0.08084]
[1746687827049,0.9414388,99084.0,99083.0,0.08840236]
[1746687827851,0.9424388,99084.0,99083.0,0.08740236]
[1746687828355,0.9424388,99084.0,99083.0,0.00756236]
[1746687828555,0.9424388,99084.0,99083.0,0.07984]
[1746687828957,0.9434388,99084.0,99083.0,0.07984]
[1746687829257,0.7754388,99084.0,99083.0,0.07984]
[1746687829959,0.7744388,99084.0,99083.0,0.07984]
[1746687830150,0.9316388,99084.0,99083.0,0.07984]
[1746687831056,0.7636388,99084.0,99083.0,0.07984]
[1746687831856,0.7636388,99084.0,99083.0,0.08741941]
[1746687832056,0.9316388,99084.0,99083.0,0.08741941]
[1746687832257,0.9306388,99084.0,99083.0,0.08741941]
[1746687832852,0.9316388,99084.0,99083.0,0.08741941]
[1746687833053,0.9326388,99084.0,99083.0,0.08741941]
[1746687834153,1.0335628,99084.0,99083.0,0.07984]
[1746687835946,0.0504621,99080.0,99072.0,0.0329]
[1746687836151,0.5626612,99073.0,99072.0,0.24216355]
[1746687836351,0.5626612,99073.0,99072.0,0.32200355]
[1746687836648,0.5626612,99073.0,99072.0,0.12014135]
[1746687837051,0.6245612,99073.0,99072.0,0.12114135]
[1746687837851,0.6245612,99073.0,99072.0,0.12214135]
[1746687838260,0.7925612,99073.0,99072.0,0.08184]
[1746687838448,0.8934972,99073.0,99072.0,0.08184]
[1746687838954,1.3944972,99073.0,99072.0,0.08084]
[1746687839457,1.3954972,99073.0,99072.0,0.08084]
[1746687839655,0.0504673,99070.0,99065.0,0.00100943]
[1746687839861,0.4112692,99066.0,99061.0,0.08048]
[1746687840051,0.2018836,99062.0,99061.0,0.08048]
[1746687840460,0.3028316,99062.0,99061.0,0.08048]
[1746687841052,0.2018999,99054.0,99053.0,0.38639274]
[1746687841252,0.2018999,99054.0,99053.0,0.71691274]
[1746687841755,0.2674999,99054.0,99053.0,0.46691274]
[1746687842261,0.4354999,99054.0,99053.0,0.46691274]
[1746687842863,0.4354999,99054.0,99053.0,0.3134219]
[1746687843052,0.4354999,99054.0,99053.0,0.11152]
[1746687843248,0.5061599,99054.0,99053.0,0.12259747]
[1746687844761,0.5061599,99054.0,99053.0,0.1300082]
[1746687847055,0.5061599,99054.0,99053.0,0.1616082]
[1746687848861,0.4733599,99054.0,99053.0,0.1616082]
[1746687849262,0.3053599,99054.0,99053.0,0.1616082]
[1746687850569,0.2725599,99054.0,99053.0,0.3635102]
[1746687852267,0.2725599,99054.0,99053.0,0.3645102]
[1746687853074,0.2725599,99054.0,99053.0,0.3655102]
[1746687855167,0.07066,99054.0,99053.0,0.3645102]
[1746687855470,0.07066,99054.0,99053.0,0.4955102]
[1746687857070,0.07066,99054.0,99053.0,0.6635102]
[1746687857768,0.07066,99054.0,99053.0,0.6625102]
[1746687858074,0.07066,99054.0,99053.0,0.6635102]
[1746687858277,0.07066,99054.0,99053.0,0.6625102]
[1746687858477,0.07066,99054.0,99053.0,0.6645102]
[1746687859266,0.07066,99054.0,99053.0,0.4965102]
[1746687859466,0.07066,99054.0,99053.0,0.4975102]
[1746687865379,0.2018925,99058.0,99057.0,0.2018918]
[1746687865581,0.2018925,99058.0,99057.0,0.2518918]
[1746687866879,0.2018925,99058.0,99057.0,0.2528918]
[1746687867179,0.3698925,99058.0,99057.0,0.051]
[1746687867581,0.3698925,99058.0,99057.0,0.052]
[1746687868281,0.2018925,99058.0,99057.0,0.052]
[1746687868785,0.2350925,99058.0,99057.0,0.052]
[1746687869075,0.6258925,99058.0,99057.0,0.022]
[1746687869271,0.7938925,99058.0,99057.0,0.021]
[1746687869472,0.7938925,99058.0,99057.0,0.022]
[1746687869981,0.7938925,99058.0,99057.0,0.002]
[1746687870183,0.7938925,99058.0,99057.0,0.001]
[1746687870683,0.2018999,99054.0,99053.0,0.0990082]
[1746687871075,0.3698999,99054.0,99053.0,0.0990082]
[1746687871479,0.4301999,99054.0,99053.0,0.0990082]
[1746687874994,0.4301999,99054.0,99053.0,0.0184882]
[1746687875194,0.4301999,99054.0,99053.0,0.07976]
[1746687876397,0.4301999,99054.0,99053.0,0.08735041]
[1746687876788,0.4301999,99054.0,99053.0,0.09854077]
[1746687878287,0.4301999,99054.0,99053.0,0.12874077]
[1746687879290,0.2621999,99054.0,99053.0,0.12874077]
[1746687880092,0.4301999,99054.0,99053.0,0.12874077]
[1746687880996,0.4301999,99054.0,99053.0,0.16144077]
[1746687884793,0.4301999,99054.0,99053.0,0.19224077]
[1746687887096,0.2621999,99054.0,99053.0,0.19224077]
[1746687892496,0.2318999,99054.0,99053.0,0.19224077]
[1746687892901,0.2018999,99054.0,99053.0,0.25224077]
[1746687894794,0.2018999,99054.0,99053.0,0.25324077]
[1746687895306,0.2018999,99054.0,99053.0,0.25424077]
[1746687899208,0.2018999,99054.0,99053.0,0.42224077]
[1746687900304,0.2018999,99054.0,99053.0,0.25424077]
[1746687902907,0.2018999,99054.0,99053.0,0.17448077]
[1746687903105,0.2018999,99054.0,99053.0,0.42100077]
[1746687904113,0.2018999,99054.0,99053.0,0.25300077]
[1746687904313,0.2028999,99054.0,99053.0,0.25200077]
[1746687905016,0.2038999,99054.0,99053.0,0.25100077]
[1746687905515,0.2028999,99054.0,99053.0,0.25100077]
[1746687905709,0.2018999,99054.0,99053.0,0.25100077]
[1746687905910,0.04031,99062.0,99058.0,0.050472]
[1746687906105,0.2320939,99062.0,99061.0,0.2018857]
[1746687906317,0.2018839,99062.0,99061.0,0.3618857]
[1746687906506,0.2018839,99062.0,99061.0,0.4234857]
[1746687907116,0.2018839,99062.0,99061.0,0.5914857]
[1746687908218,0.2018839,99062.0,99061.0,0.5924857]
[1746687908515,0.2018839,99062.0,99061.0,0.5934857]
[1746687908710,0.2018839,99062.0,99061.0,0.6720057]
[1746687911214,0.2018839,99062.0,99061.0,0.5040057]
[1746687912105,0.2018839,99062.0,99061.0,0.6720057]
[1746687913218,0.2018839,99062.0,99061.0,0.5040057]
[1746687914207,0.2018839,99062.0,99061.0,0.6720057]
[1746687915218,0.2018839,99062.0,99061.0,0.5040057]
[1746687915622,0.2018839,99062.0,99061.0,0.65747236]
[1746687917721,0.2018839,99062.0,99061.0,0.65647236]
[1746687917923,0.2018839,99062.0,99061.0,0.65747236]
[1746687920824,0.2018839,99062.0,99061.0,0.65647236]
[1746687921020,0.0101,99068.0,99067.0,0.2018734]
[1746687921216,0.0101,99068.0,99067.0,0.6318734]
[1746687921418,0.2523338,99071.0,99070.0,0.2018673]
[1746687921618,0.2523338,99071.0,99070.0,0.5918673]
[1746687922918,0.2533338,99071.0,99070.0,0.5918673]
[1746687924028,0.2543338,99071.0,99070.0,0.5918673]
[1746687925326,0.2543338,99071.0,99070.0,0.15]
[1746687926029,0.2543338,99071.0,99070.0,0.1806]
[1746687926221,0.4223338,99071.0,99070.0,0.1806]
[1746687926525,0.4213338,99071.0,99070.0,0.1806]
[1746687926727,0.4223338,99071.0,99070.0,0.1806]
[1746687928230,0.4223338,99071.0,99070.0,0.3824673]
[1746687928828,0.4223338,99071.0,99070.0,0.1806]
[1746687930132,0.2543338,99071.0,99070.0,0.1806]
[1746687930522,0.2543338,99071.0,99070.0,0.15]
[1746687930724,0.2543338,99071.0,99070.0,0.04]
[1746687931232,0.4223338,99071.0,99070.0,0.04]
[1746687931727,0.2018694,99069.0,99068.0,0.3608]
[1746687932133,0.3698694,99069.0,99068.0,0.3608]
[1746687932323,0.4358694,99069.0,99068.0,0.3608]
[1746687933030,0.4368694,99069.0,99068.0,0.3608]
[1746687933233,0.4368694,99069.0,99068.0,0.43872]
[1746687933835,0.4368694,99069.0,99068.0,0.3608]
[1746687934136,0.2018755,99066.0,99065.0,0.07792]
[1746687935239,0.3698755,99066.0,99065.0,0.07792]
[1746687935633,0.3718755,99066.0,99065.0,0.07792]
[1746687939040,0.0504702,99064.0,99060.0,0.2018876]
[1746687939335,0.2523545,99062.0,99061.0,0.07792]
[1746687939737,0.3136545,99062.0,99061.0,0.07792]
[1746687940138,0.4816545,99062.0,99061.0,0.07792]
[1746687941834,0.4826545,99062.0,99061.0,0.07792]
[1746687942141,0.3146545,99062.0,99061.0,0.07792]
[1746687943135,0.2842545,99062.0,99061.0,0.07792]
[1746687943337,0.2842545,99062.0,99061.0,0.28792]
[1746687943841,0.2842545,99062.0,99061.0,0.29792]
[1746687944541,0.2832545,99062.0,99061.0,0.32922]
[1746687944740,0.2832545,99062.0,99061.0,0.33022]
[1746687945240,0.4512545,99062.0,99061.0,0.32922]
[1746687946941,0.4818545,99062.0,99061.0,0.32922]
[1746687948247,0.4818545,99062.0,99061.0,0.29792]
[1746687948746,0.4512545,99062.0,99061.0,0.29792]
[1746687949046,0.4512545,99062.0,99061.0,0.32802]
[1746687949237,0.4512545,99062.0,99061.0,0.36122]
[1746687954139,0.8120545,99062.0,99061.0,0.29792]
[1746687954340,0.8435545,99062.0,99061.0,0.07792]
[1746687955547,1.3435545,99062.0,99061.0,0.07792]
[1746687955748,1.3455545,99062.0,99061.0,0.07792]
[1746687956144,1.3435545,99062.0,99061.0,0.07792]
[1746687956448,1.3465545,99062.0,99061.0,0.07792]
[1746687956949,1.3495545,99062.0,99061.0,0.07792]
[1746687957344,1.3180545,99062.0,99061.0,0.07792]
[1746687957544,1.3180545,99062.0,99061.0,0.10972]
[1746687957846,1.3488545,99062.0,99061.0,0.10972]
[1746687958149,1.3468545,99062.0,99061.0,0.10972]
[1746687958354,1.3488545,99062.0,99061.0,0.10972]
[1746687960157,1.3468545,99062.0,99061.0,0.10972]
[1746687960455,1.3488545,99062.0,99061.0,0.10972]
[1746687963258,1.3468545,99062.0,99061.0,0.10972]
[1746687963563,1.4195145,99062.0,99061.0,0.10972]
[1746687964158,1.4175145,99062.0,99061.0,0.10972]
[1746687964365,1.4195145,99062.0,99061.0,0.10972]
[1746687964756,0.2018857,99061.0,99060.0,0.0326]
[1746687964957,0.2018877,99060.0,99059.0,0.0316]
[1746687965158,0.2649877,99060.0,99059.0,0.0316]
[1746687966056,0.2659877,99060.0,99059.0,0.0316]
[1746687966260,0.4339877,99060.0,99059.0,0.0626]
[1746687966562,0.9339877,99060.0,99059.0,0.0626]
[1746687967769,0.9359877,99060.0,99059.0,0.0626]
[1746687975374,0.9359877,99060.0,99059.0,0.0934]
[1746687977178,0.9028877,99060.0,99059.0,0.2934]
[1746687977678,0.9018877,99060.0,99059.0,0.2934]
[1746687979479,0.9008877,99060.0,99059.0,0.2934]
[1746687979679,0.9018877,99060.0,99059.0,0.2934]
[1746687980181,0.9018877,99060.0,99059.0,0.0934]
[1746687981274,0.9018877,99060.0,99059.0,0.3034]
[1746687981474,0.8718877,99060.0,99059.0,0.5152897]
[1746687982276,0.7038877,99060.0,99059.0,0.5152897]
[1746687982476,0.7028877,99060.0,99059.0,0.5152897]
[1746687982678,0.7028877,99060.0,99059.0,0.5162897]
[1746687983075,0.501,99060.0,99059.0,1.2272377]
[1746687983278,0.501,99060.0,99059.0,0.9872377]
[1746687983779,0.501,99060.0,99059.0,0.7372377]
[1746687984082,0.2018877,99060.0,99059.0,0.7382377]
[1746687984271,0.1519877,99060.0,99059.0,0.7382377]
[1746687985181,0.04031,99066.0,99065.0,0.2018775]
[1746687985383,0.0504647,99075.0,99069.0,0.2018694]
[1746687985571,0.0504647,99075.0,99069.0,0.5318694]
[1746687986070,0.8589,99070.0,99069.0,0.5318694]
[1746687986275,1.0607673,99070.0,99069.0,0.5622694]
[1746687986881,0.168,99070.0,99069.0,0.6632094]
[1746687987072,0.3698673,99070.0,99069.0,0.6642094]
[1746687987380,0.2018673,99070.0,99069.0,0.6642094]
[1746687987674,0.2018673,99070.0,99069.0,0.6963094]
[1746687988274,0.3698673,99070.0,99069.0,0.6963094]
[1746687988574,0.3698673,99070.0,99069.0,0.5953694]
[1746688002289,0.0326,99103.0,99069.0,1.1335]
[1746688002474,0.0015,99105.0,99104.0,0.2017981]
[1746688002675,0.0015,99105.0,99104.0,0.9401581]
[1746688002880,0.203296,99105.0,99104.0,0.9401581]
[1746688003088,0.371296,99105.0,99104.0,0.9401581]
[1746688004084,0.371296,99105.0,99104.0,0.9421581]
[1746688004490,0.371296,99105.0,99104.0,0.9401581]
[1746688004691,0.371296,99105.0,99104.0,0.9421581]
[1746688005189,0.371296,99105.0,99104.0,0.9401581]
[1746688005382,0.371296,99105.0,99104.0,0.9411581]
[1746688005583,0.371296,99105.0,99104.0,0.9431581]
[1746688006287,0.371296,99105.0,99104.0,0.9411581]
[1746688006485,0.371296,99105.0,99104.0,0.9421581]
[1746688006687,0.371296,99105.0,99104.0,0.75110391]
[1746688006994,0.371296,99105.0,99104.0,0.75010391]
[1746688007293,0.371296,99105.0,99104.0,0.75006391]
[1746688007592,0.403096,99105.0,99104.0,0.67254391]
[1746688007789,0.403096,99105.0,99104.0,0.75006391]
[1746688008194,0.404096,99105.0,99104.0,0.75006391]
[1746688008390,0.404096,99105.0,99104.0,0.75749186]
[1746688009099,0.405096,99105.0,99104.0,0.75649186]
[1746688009785,0.404096,99105.0,99104.0,0.75649186]
[1746688010096,0.405096,99105.0,99104.0,0.75649186]
[1746688010488,0.406096,99105.0,99104.0,0.75649186]
[1746688010685,0.406096,99105.0,99104.0,0.72649186]
[1746688011391,0.404096,99105.0,99104.0,0.72649186]
[1746688011597,0.406096,99105.0,99104.0,0.72649186]
[1746688013498,0.406096,99105.0,99104.0,0.64897186]
[1746688013899,0.406096,99105.0,99104.0,0.72649186]
[1746688015205,0.406096,99105.0,99104.0,0.64897186]
[1746688015402,0.406096,99105.0,99104.0,0.72649186]
[1746688016401,0.374296,99105.0,99104.0,0.72649186]
[1746688016599,0.374296,99105.0,99104.0,0.92828996]
[1746688017299,0.374296,99105.0,99104.0,0.95828996]
[1746688017501,0.403096,99105.0,99104.0,0.99158996]
[1746688018202,0.404096,99105.0,99104.0,0.99158996]
[1746688018502,0.403096,99105.0,99104.0,0.99158996]
[1746688019697,0.403096,99105.0,99104.0,0.78979186]
[1746688019903,0.434596,99105.0,99104.0,0.75649186]
[1746688020200,0.434596,99105.0,99104.0,0.67897186]
[1746688020400,0.434596,99105.0,99104.0,0.75649186]
[1746688021098,0.434596,99105.0,99104.0,0.72649186]
[1746688021304,0.436596,99105.0,99104.0,0.72649186]
[1746688021904,0.435596,99105.0,99104.0,0.72649186]
[1746688022201,0.437596,99105.0,99104.0,0.72649186]
[1746688024605,0.436596,99105.0,99104.0,0.72649186]
[1746688027013,0.437596,99105.0,99104.0,0.72649186]
[1746688027706,0.406096,99105.0,99104.0,0.72649186]
[1746688028303,0.406096,99105.0,99104.0,0.96048996]
[1746688028505,0.402096,99105.0,99104.0,0.96048996]
[1746688028700,0.404096,99105.0,99104.0,0.96048996]
[1746688029201,0.373296,99105.0,99104.0,0.96048996]
[1746688030105,0.371296,99105.0,99104.0,0.96248996]
[1746688031107,0.371296,99105.0,99104.0,0.97248996]
[1746688031295,0.371296,99105.0,99104.0,0.97148996]
[1746688032804,0.371296,99105.0,99104.0,0.97048996]
[1746688033008,0.371296,99105.0,99104.0,0.97148996]
[1746688035412,0.371296,99105.0,99104.0,0.97048996]
[1746688035710,0.371296,99105.0,99104.0,0.97148996]
[1746688038110,0.441926,99105.0,99104.0,0.97148996]
[1746688038613,0.441926,99105.0,99104.0,1.00198996]
[1746688040315,0.441926,99105.0,99104.0,1.00098996]
[1746688040516,0.441926,99105.0,99104.0,1.00198996]
[1746688042617,0.441926,99105.0,99104.0,0.92446996]
[1746688042818,0.441926,99105.0,99104.0,1.00170996]
[1746688043520,0.441926,99105.0,99104.0,1.00070996]
[1746688044214,0.441926,99105.0,99104.0,0.79891186]
[1746688044420,0.441926,99105.0,99104.0,1.00070996]
[1746688049324,0.441926,99105.0,99104.0,0.79891186]
[1746688049917,0.441926,99105.0,99104.0,1.00070996]
[1746688053041,0.441926,99105.0,99104.0,1.00170996]
[1746688054325,0.24013,99105.0,99104.0,1.00170996]
[1746688054717,0.24013,99105.0,99104.0,1.00070996]
[1746688055625,0.24013,99105.0,99104.0,1.00170996]
[1746688055827,0.24013,99105.0,99104.0,1.37170996]
[1746688056331,0.24013,99105.0,99104.0,1.37270996]
[1746688056821,0.24013,99105.0,99104.0,1.37370996]
[1746688057024,0.24013,99105.0,99104.0,1.56370996]
[1746688057218,0.5,99119.0,99118.0,0.2017696]
[1746688057426,0.5323,99119.0,99118.0,0.8725696]
[1746688058130,0.7003,99119.0,99118.0,0.9366696]
[1746688058721,0.7013,99119.0,99118.0,0.9366696]
[1746688059122,0.7023,99119.0,99118.0,0.9366696]
[1746688059525,0.7013,99119.0,99118.0,0.9366696]
[1746688059717,0.7023,99119.0,99118.0,0.9366696]
[1746688061434,0.7023,99119.0,99118.0,1.1266696]
[1746688062434,0.7023,99119.0,99118.0,0.9366696]
[1746688063723,0.67,99119.0,99118.0,0.9366696]
[1746688066327,0.001,99126.0,99125.0,0.2017553]
[1746688066528,0.001,99126.0,99125.0,0.9825553]
[1746688067133,0.169,99126.0,99125.0,1.0477553]
[1746688068229,0.171,99126.0,99125.0,1.0477553]
[1746688068637,0.173,99126.0,99125.0,1.0477553]
[1746688072531,0.171,99126.0,99125.0,1.0497553]
[1746688072836,0.169,99126.0,99125.0,1.0497553]
[1746688073030,0.169,99126.0,99125.0,1.0507553]
[1746688073232,0.169,99126.0,99125.0,1.0537553]
[1746688074742,0.169,99126.0,99125.0,1.1292753]
[1746688078850,0.0504286,99145.0,99132.0,0.0504348]
[1746688079150,0.0504293,99144.0,99143.0,0.2017118]
[1746688079337,0.0504293,99144.0,99143.0,0.4982318]
[1746688079541,0.2521516,99144.0,99143.0,0.4982318]
[1746688079843,0.2521516,99144.0,99143.0,0.5182318]
[1746688080239,0.4201516,99144.0,99143.0,0.5182318]
[1746688081441,0.4211516,99144.0,99143.0,0.5182318]
[1746688081644,0.4221516,99144.0,99143.0,0.5182318]
[1746688082850,0.4211516,99144.0,99143.0,0.5182318]
[1746688083753,0.4201516,99144.0,99143.0,0.5182318]
[1746688083954,0.4201516,99144.0,99143.0,0.52909341]
[1746688085153,0.4201516,99144.0,99143.0,0.56229341]
[1746688088647,0.4201516,99144.0,99143.0,0.36058161]
[1746688088849,0.4201516,99144.0,99143.0,0.32738161]
[1746688089149,0.4531516,99144.0,99143.0,0.52910031]
[1746688091157,0.4541516,99144.0,99143.0,0.52910031]
[1746688091655,0.4531516,99144.0,99143.0,0.52910031]
[1746688091858,0.4541516,99144.0,99143.0,0.45258031]
[1746688092058,0.4541516,99144.0,99143.0,0.52894031]
[1746688093859,0.4531516,99144.0,99143.0,0.52894031]
[1746688094058,0.4541516,99144.0,99143.0,0.52894031]
[1746688096959,0.4531516,99144.0,99143.0,0.52894031]
[1746688097164,0.4551516,99144.0,99143.0,0.52894031]
[1746688098069,0.4541516,99144.0,99143.0,0.52894031]
[1746688098267,0.4551516,99144.0,99143.0,0.52894031]
[1746688098665,0.45534138,99144.0,99143.0,0.52894031]
[1746688099670,0.45534138,99144.0,99143.0,0.56144031]
[1746688100461,0.45434138,99144.0,99143.0,0.56144031]
[1746688100767,0.45334138,99144.0,99143.0,0.56144031]
[1746688101462,0.42034138,99144.0,99143.0,0.56144031]
[1746688103159,0.16818978,99144.0,99143.0,0.54144031]
[1746688103365,0.2026922,99156.0,99155.0,0.2016943]
[1746688103561,0.2017044,99152.0,99151.0,0.2016988]
[1746688103764,0.2017044,99152.0,99151.0,0.8824988]
[1746688104069,0.2017004,99152.0,99151.0,0.6808]
[1746688104364,0.3697004,99152.0,99151.0,0.9588624]
[1746688104568,0.3697004,99152.0,99151.0,0.75716]
[1746688104768,0.3697004,99152.0,99151.0,0.9598624]
[1746688105170,0.3697004,99152.0,99151.0,0.75916]
[1746688106070,0.3697004,99152.0,99151.0,0.9608624]
[1746688107467,0.3697004,99152.0,99151.0,0.9598624]
[1746688108264,0.3697004,99152.0,99151.0,0.6818]
[1746688108469,0.3697004,99152.0,99151.0,0.75816]
[1746688108864,0.4023004,99152.0,99151.0,0.75816]
[1746688110374,0.4023004,99152.0,99151.0,0.75716]
[1746688110865,0.4033004,99152.0,99151.0,0.75716]
[1746688111766,0.4033004,99152.0,99151.0,0.78736]
[1746688113364,0.4023004,99152.0,99151.0,0.78736]
[1746688113771,0.4023004,99152.0,99151.0,0.78836]
[1746688114467,0.4023004,99152.0,99151.0,0.78736]
[1746688114667,0.3697004,99152.0,99151.0,1.0216624]
[1746688114870,0.168,99152.0,99151.0,1.0216624]
[1746688115176,0.3697004,99152.0,99151.0,1.0216624]
[1746688115578,0.3697004,99152.0,99151.0,0.81996]
[1746688116474,0.3697004,99152.0,99151.0,0.82096]
[1746688116871,0.3697004,99152.0,99151.0,0.82196]
[1746688117073,0.3697004,99152.0,99151.0,1.0226624]
[1746688126181,0.3697004,99152.0,99151.0,1.0226224]
[1746688130083,0.3697004,99152.0,99151.0,1.0236224]
[1746688132185,0.168,99152.0,99151.0,1.0236224]
[1746688132579,0.168,99152.0,99151.0,1.2736224]
[1746688132979,0.168,99152.0,99151.0,1.0536224]
[1746688134080,0.273283,99156.0,99155.0,0.2016943]
[1746688134283,0.07159,99156.0,99155.0,0.5316943]
[1746688134476,0.001,99156.0,99155.0,0.5316943]
[1746688134677,0.001,99156.0,99155.0,0.6273943]
[1746688135183,0.3706922,99156.0,99155.0,0.6273943]
[1746688135980,0.169,99156.0,99155.0,0.6273943]
[1746688136784,0.3706922,99156.0,99155.0,0.6273943]
[1746688137378,0.3706922,99156.0,99155.0,0.63506636]
[1746688151697,0.3706922,99156.0,99155.0,0.71138636]
[1746688153986,0.169,99156.0,99155.0,0.64138636]
[1746688154289,0.2520943,99166.0,99165.0,0.201673]